[Event "CCT Chessable Masters D-III 2024"]
[Site "Online"]
[Date "2024.02.02"]
[Round "2"]
[White "Mishra, Abhimanyu"]
[Black "Safarli, Eltaj"]
[Result "1/2-1/2"]
[ECO "B22"]
[WhiteElo "2627"]
[BlackElo "2604"]
[Annotator "RC"]
[PlyCount "120"]
[EventDate "2024.01.12"]
[EventType "k.o."]
[EventCountry "NET"]
[SourceTitle "playchess.com"]
[Source "ChessBase"]
[SourceQuality "1"]
[TimeControl "600+2"]

1. e4 {[%emt 0:00:03]} c5 {[%emt 0:00:05]} 2. Nf3 {[%emt 0:00:01]} e6 {[%emt 0:00:01]} 3. c3 {[%emt 0:00:01]} d5 {[%emt 0:00:01]} 4. exd5 {[%emt 0:00:01]} exd5 {[%emt 0:00:00]} 5. d4 {[%emt 0:00:02]} Nf6 {[%emt 0:00:01]} 6. Bb5+ {[%emt 0:00:02]} Bd7 {[%emt 0:00:01]} 7. Bxd7+ {[%emt 0:00:01]} Nbxd7 {[%emt 0:00:00]} 8. O-O {[%emt 0:00:02]} Be7 {[%emt 0:00:00]} 9. dxc5 {[%emt 0:00:00]} Nxc5 {[%emt 0:00:01]} 10. Be3 {[%emt 0:00:02]} O-O {[%emt 0:00:03]} 11. Nbd2 {[%emt 0:00:01]} Re8 {[%emt 0:00:00]} 12. Qc2 {[%emt 0:00:01]} Qc7 {[%emt 0:00:04]} 13. Rad1 {[%emt 0:00:05]} Rad8 {[%emt 0:00:52]} 14. Rfe1 {[%emt 0:00:16]} Nce4 {[%emt 0:00:45]} 15. h3 {[%emt 0:00:37]} Bc5 {[%emt 0:00:13]} 16. Bxc5 {[%emt 0:00:59]} Qxc5 {[%emt 0:00:04]} 17. Nxe4 {[%emt 0:00:29]} dxe4 {[%emt 0:00:05]} 18. Rxd8 {[%emt 0:00:30]} Rxd8 {[%emt 0:00:00]} 19. Nd2 {[%emt 0:00:01]} Qd5 {[%emt 0:02:57]} 20. Nxe4 {[%emt 0:00:10]} Qxa2 {[%emt 0:00:05]} 21. Nxf6+ {[%emt 0:00:19]} gxf6 {[%emt 0:00:00]} 22. Qf5 {[%emt 0:03:54]} Qxb2 {[%emt 0:00:04]} 23. Re3 {[%emt 0:01:42]} Qb6 {[%emt 0:01:09]} 24. Rg3+ {[%emt 0:00:26]} Kf8 {[%emt 0:00:01]} 25. Qxh7 {[%emt 0:00:07]} Rd1+ {[%emt 0:01:11]} 26. Kh2 {[%emt 0:00:02]} Re1 {[%emt 0:00:14]} 27. Qf5 {[%emt 0:00:40]} Re5 {[%emt 0:00:25]} 28. Qc8+ {[%emt 0:00:05]} Re8 {[%emt 0:00:01]} 29. Qg4 {[%emt 0:00:01]} Qxf2 {[%emt 0:00:11]} 30. Qg7+ {[%emt 0:00:05]} Ke7 {[%emt 0:00:00]} 31. Rf3 {[%emt 0:00:00]} Qb6 {[%emt 0:00:03]} 32. h4 {[%emt 0:00:05]} Qd6+ {[%emt 0:00:07]} 33. Kh3 {[%emt 0:00:03]} Qe6+ {[%emt 0:00:05]} 34. Kh2 {[%emt 0:00:01]} Qe5+ {[%emt 0:00:02]} 35. Kh3 {[%emt 0:00:05]} Rd8 {[%emt 0:00:04]} 36. Qh6 {[%emt 0:00:05]} a5 {[%emt 0:00:44]} 37. h5 {[%emt 0:00:05]} a4 {[%emt 0:00:11]} 38. Re3 {[%emt 0:00:02]} Rd3 {[%emt 0:00:01]} 39. Rxd3 {[%emt 0:00:01]} Qf5+ {[%emt 0:00:00]} 40. Kh2 {[%emt 0:00:01]} Qxd3 {[%emt 0:00:01]} 41. Qf4 {[%emt 0:00:05]} Qe2 {[%emt 0:00:46]} 42. Qb4+ {[%emt 0:00:03]} Ke6 {[%emt 0:00:02]} 43. Qb6+ {[%emt 0:00:02]} Kf5 {[%emt 0:00:04]} 44. Qb1+ {[%emt 0:00:04]} Kg5 {[%emt 0:00:03]} 45. Qxb7 {[%emt 0:00:02]} Qxh5+ {[%emt 0:00:04]} 46. Kg1 {[%emt 0:00:00]} Qd1+ {[%emt 0:00:01]} 47. Kh2 {[%emt 0:00:01]} Qd6+ {[%emt 0:00:04]} 48. Kg1 {[%emt 0:00:02]} Qc5+ {[%emt 0:00:06]} 49. Kh2 {[%emt 0:00:01]} a3 {[%emt 0:00:02]} 50. Qxf7 {[%emt 0:00:02]} Qe5+ {[%emt 0:00:02]} 51. Kg1 {[%emt 0:00:02]} Qxc3 {[%emt 0:00:01]} 52. Qg7+ {[%emt 0:00:04]} Kf4 {[%emt 0:00:01]} 53. Qh6+ {[%emt 0:00:02]} Ke4 {[%emt 0:00:01]} 54. Qh7+ {[%emt 0:00:00]} Ke3 {[%emt 0:00:10]} 55. Qe7+ {[%emt 0:00:02]} Kd2 {[%emt 0:00:01]} 56. Qd6+ {[%emt 0:00:02]} Kc1 {[%emt 0:00:05]} 57. Qf4+ {[%emt 0:00:01]} Kd1 {[%emt 0:00:04]} 58. Qg4+ {[%emt 0:00:03]} Kd2 {[%emt 0:00:07]} 59. Qf4+ {[%emt 0:00:02]} Qe3+ {[%emt 0:00:01]} 60. Qxe3+ {[%emt 0:00:04]} Kxe3 {[%emt 0:00:01]} 1/2-1/2

[Event "CCT Chessable Masters D-III 2024"]
[Site "Online"]
[Date "2024.02.02"]
[Round "2"]
[White "BilodeauA"]
[Black "Paravyan, David"]
[Result "1-0"]
[ECO "C43"]
[WhiteElo "2622"]
[BlackElo "2612"]
[Annotator "RC"]
[PlyCount "166"]
[EventDate "2024.01.12"]
[EventType "k.o."]
[EventCountry "NET"]
[SourceTitle "playchess.com"]
[Source "ChessBase"]
[SourceQuality "1"]
[TimeControl "600+2"]

1. e4 {[%emt 0:00:04]} e5 {[%emt 0:00:04]} 2. Nf3 {[%emt 0:00:03]} Nf6 {[%emt 0:02:30]} 3. d4 {[%emt 0:00:05]} Nxe4 {[%emt 0:00:04]} 4. Nxe5 {[%emt 0:00:04]} d6 {[%emt 0:00:03]} 5. Nd3 {[%emt 0:00:03]} d5 {[%emt 0:00:03]} 6. Nf4 {[%emt 0:00:03]} c6 {[%emt 0:00:03]} 7. Bd3 {[%emt 0:00:08]} Bd6 {[%emt 0:00:02]} 8. Be3 {[%emt 0:00:13]} O-O {[%emt 0:00:03]} 9. Nd2 {[%emt 0:00:03]} Bf5 {[%emt 0:00:08]} 10. Nxe4 {[%emt 0:00:52]} Bxe4 {[%emt 0:00:26]} 11. Bxe4 {[%emt 0:00:14]} dxe4 {[%emt 0:00:02]} 12. Qg4 {[%emt 0:00:17]} Bxf4 {[%emt 0:00:06]} 13. Qxf4 {[%emt 0:00:07]} Qa5+ {[%emt 0:00:17]} 14. c3 {[%emt 0:00:17]} Re8 {[%emt 0:00:32]} 15. O-O {[%emt 0:00:23]} Nd7 {[%emt 0:00:06]} 16. c4 {[%emt 0:00:11]} Rad8 {[%emt 0:00:19]} 17. h3 {[%emt 0:00:06]} b5 {[%emt 0:00:19]} 18. Rfc1 {[%emt 0:00:18]} Nb6 {[%emt 0:00:18]} 19. b3 {[%emt 0:00:11]} bxc4 {[%emt 0:00:05]} 20. bxc4 {[%emt 0:00:02]} Qa4 {[%emt 0:00:06]} 21. Rab1 {[%emt 0:00:25]} Nxc4 {[%emt 0:01:08]} 22. Rb7 {[%emt 0:00:19]} Rf8 {[%emt 0:00:02]} 23. Qg3 {[%emt 0:01:02]} Nxe3 {[%emt 0:00:06]} 24. fxe3 {[%emt 0:00:05]} a5 {[%emt 0:00:32]} 25. Kh2 {[%emt 0:00:10]} Rde8 {[%emt 0:00:22]} 26. Qf2 {[%emt 0:00:11]} Rb8 {[%emt 0:00:47]} 27. Rc7 {[%emt 0:00:16]} Qa3 {[%emt 0:00:04]} 28. R1xc6 {[%emt 0:00:44]} Qb2 {[%emt 0:00:26]} 29. Rc2 {[%emt 0:00:10]} Qb6 {[%emt 0:00:07]} 30. R7c5 {[%emt 0:00:18]} a4 {[%emt 0:00:05]} 31. Qf4 {[%emt 0:00:05]} a3 {[%emt 0:00:05]} 32. R5c3 {[%emt 0:00:41]} Qa6 {[%emt 0:00:05]} 33. Rc6 {[%emt 0:00:16]} Qb5 {[%emt 0:00:16]} 34. Qxe4 {[%emt 0:00:09]} Rbe8 {[%emt 0:00:04]} 35. Qf4 {[%emt 0:00:11]} h6 {[%emt 0:00:06]} 36. R6c5 {[%emt 0:00:04]} Qb1 {[%emt 0:00:05]} 37. Rf2 {[%emt 0:00:09]} Qe1 {[%emt 0:00:03]} 38. Rf3 {[%emt 0:00:18]} Qe2 {[%emt 0:00:06]} 39. Rg3 {[%emt 0:00:03]} Re6 {[%emt 0:00:09]} 40. Qg4 {[%emt 0:00:33]} Qxg4 {[%emt 0:00:03]} 41. hxg4 {[%emt 0:00:02]} Rb8 {[%emt 0:00:05]} 42. Rc3 {[%emt 0:00:03]} Ra6 {[%emt 0:00:03]} 43. e4 {[%emt 0:00:03]} Ra4 {[%emt 0:00:02]} 44. Rgd3 {[%emt 0:00:07]} Rd8 {[%emt 0:00:09]} 45. Rxa3 {[%emt 0:00:12]} Rdxd4 {[%emt 0:00:04]} 46. Rxd4 {[%emt 0:00:15]} Rxa3 {[%emt 0:00:03]} 47. Rd2 {[%emt 0:00:02]} Kf8 {[%emt 0:00:05]} 48. Kg1 {[%emt 0:00:05]} Ke7 {[%emt 0:00:02]} 49. Kf2 {[%emt 0:00:05]} Kf6 {[%emt 0:00:02]} 50. Ke1 {[%emt 0:00:07]} Kg5 {[%emt 0:00:05]} 51. Kd1 {[%emt 0:00:03]} Kxg4 {[%emt 0:00:02]} 52. Kc1 {[%emt 0:00:02]} Re3 {[%emt 0:00:08]} 53. a4 {[%emt 0:00:06]} Rxe4 {[%emt 0:00:03]} 54. Ra2 {[%emt 0:00:03]} Kg3 {[%emt 0:00:11]} 55. a5 {[%emt 0:00:03]} Re7 {[%emt 0:00:02]} 56. Kd2 {[%emt 0:00:03]} Kxg2 {[%emt 0:00:04]} 57. Kd3+ {[%emt 0:00:03]} Kg3 {[%emt 0:00:03]} 58. a6 {[%emt 0:00:03]} Ra7 {[%emt 0:00:04]} 59. Kc4 {[%emt 0:00:03]} f5 {[%emt 0:00:03]} 60. Ra3+ {[%emt 0:00:03]} Kg4 {[%emt 0:00:04]} 61. Kc5 {[%emt 0:00:05]} f4 {[%emt 0:00:02]} 62. Kd4 {[%emt 0:00:18]} g5 {[%emt 0:00:04]} 63. Ke4 {[%emt 0:00:02]} h5 {[%emt 0:00:03]} 64. Ra5 {[%emt 0:00:03]} h4 {[%emt 0:00:03]} 65. Ra1 {[%emt 0:00:04]} h3 {[%emt 0:00:03]} 66. Rg1+ {[%emt 0:00:02]} Kh4 {[%emt 0:00:02]} 67. Kf5 {[%emt 0:00:02]} h2 {[%emt 0:00:05]} 68. Rh1 {[%emt 0:00:04]} Kg3 {[%emt 0:00:03]} 69. Ra1 {[%emt 0:00:03]} f3 {[%emt 0:00:03]} 70. Kxg5 {[%emt 0:00:03]} Kg2 {[%emt 0:00:02]} 71. Ra2+ {[%emt 0:00:02]} f2 {[%emt 0:00:03]} 72. Ra4 {[%emt 0:00:03]} h1=Q {[%emt 0:00:03]} 73. Rg4+ {[%emt 0:00:02]} Kf1 {[%emt 0:00:02]} 74. Rd4 {[%emt 0:00:02]} Qg2+ {[%emt 0:00:03]} 75. Kf5 {[%emt 0:00:03]} Rxa6 {[%emt 0:00:03]} 76. Ke5 {[%emt 0:00:02]} Qg5+ {[%emt 0:00:03]} 77. Ke4 {[%emt 0:00:02]} Qg4+ {[%emt 0:00:03]} 78. Kd3 {[%emt 0:00:03]} Qxd4+ {[%emt 0:00:02]} 79. Kxd4 {[%emt 0:00:02]} Rd6+ {[%emt 0:00:02]} 80. Ke3 {[%emt 0:00:03]} Rd1 {[%emt 0:00:02]} 81. Kf3 {[%emt 0:00:03]} Ke1 {[%emt 0:00:02]} 82. Kg3 {[%emt 0:00:03]} f1=Q {[%emt 0:00:03]} 83. Kh2 {[%emt 0:00:02]} Rd3 {[%emt 0:00:02]} 1-0

[Event "CCT Chessable Masters D-III 2024"]
[Site "Online"]
[Date "2024.02.02"]
[Round "2"]
[White "Santos Latasa, Jaime"]
[Black "stSecond"]
[Result "1-0"]
[ECO "C83"]
[WhiteElo "2615"]
[BlackElo "2576"]
[Annotator "ChessBase"]
[PlyCount "165"]
[EventDate "2024.01.12"]
[EventType "k.o."]
[EventCountry "NET"]
[SourceTitle "playchess.com"]
[Source "ChessBase"]
[SourceQuality "1"]
[TimeControl "600+2"]

1. e4 {[%emt 0:00:02]} e5 {[%emt 0:00:03]} 2. Nf3 {[%emt 0:00:01]} Nc6 {[%emt 0:00:00]} 3. Bb5 {[%emt 0:00:01]} a6 {[%emt 0:00:02]} 4. Ba4 {[%emt 0:00:01]} Nf6 {[%emt 0:00:05]} 5. O-O {[%emt 0:00:02]} Nxe4 {[%emt 0:00:12]} 6. d4 {[%emt 0:00:01]} b5 {[%emt 0:00:01]} 7. Bb3 {[%emt 0:00:01]} d5 {[%emt 0:00:00]} 8. dxe5 {[%emt 0:00:01]} Be6 {[%emt 0:00:01]} 9. Be3 {[%emt 0:00:01]} Be7 {[%emt 0:00:09]} 10. c3 {[%emt 0:00:03]} Nc5 {[%emt 0:00:03]} 11. Bc2 {[%emt 0:00:25]} Nd7 {[%emt 0:00:02]} 12. Nd4 {[%emt 0:00:01]} Ncxe5 {[%emt 0:01:01]} 13. Nxe6 {[%emt 0:00:02]} fxe6 {[%emt 0:00:02]} 14. Qh5+ {[%emt 0:00:04]} Nf7 {[%emt 0:00:15]} 15. Qg4 {[%emt 0:00:04]} Nf6 {[%emt 0:00:42]} 16. Qxe6 {[%emt 0:00:05]} Qd7 {[%emt 0:00:27]} 17. Bf5 {[%emt 0:00:12]} Qxe6 {[%emt 0:01:56]} 18. Bxe6 {[%emt 0:00:01]} Bd6 {[%emt 0:00:33]} 19. Bd4 {[%emt 0:00:16]} Ng5 {[%emt 0:00:13]} 20. Bf5 {[%emt 0:00:04]} Kf7 {[%emt 0:00:07]} 21. Re1 {[%emt 0:00:23]} g6 {[%emt 0:00:14]} 22. Bxf6 {[%emt 0:01:14]} Kxf6 {[%emt 0:00:10]} 23. Bd7 {[%emt 0:00:02]} Rhd8 {[%emt 0:00:41]} 24. Bc6 {[%emt 0:00:26]} Rab8 {[%emt 0:00:01]} 25. h4 {[%emt 0:00:40]} Ne4 {[%emt 0:00:33]} 26. Bxd5 {[%emt 0:00:34]} Nxf2 {[%emt 0:00:02]} 27. Re6+ {[%emt 0:01:00]} Kf5 {[%emt 0:00:26]} 28. Kxf2 {[%emt 0:00:04]} Bc5+ {[%emt 0:00:06]} 29. Ke1 {[%emt 0:00:01]} Rxd5 {[%emt 0:00:02]} 30. Re2 {[%emt 0:00:01]} Kg4 {[%emt 0:00:20]} 31. Nd2 {[%emt 0:00:06]} Kxh4 {[%emt 0:00:11]} 32. Ne4 {[%emt 0:00:01]} Rf8 {[%emt 0:00:11]} 33. a4 {[%emt 0:00:12]} Bb6 {[%emt 0:00:12]} 34. b4 {[%emt 0:00:19]} Kg4 {[%emt 0:00:13]} 35. a5 {[%emt 0:00:04]} Ba7 {[%emt 0:00:01]} 36. Rc1 {[%emt 0:00:05]} Rdf5 {[%emt 0:00:58]} 37. Kd2 {[%emt 0:00:09]} Rf1 {[%emt 0:00:10]} 38. Rxf1 {[%emt 0:00:03]} Rxf1 {[%emt 0:00:01]} 39. Kd3 {[%emt 0:00:15]} h5 {[%emt 0:00:08]} 40. c4 {[%emt 0:00:03]} bxc4+ {[%emt 0:00:03]} 41. Kxc4 {[%emt 0:00:01]} h4 {[%emt 0:00:10]} 42. Kd5 {[%emt 0:00:15]} Rc1 {[%emt 0:00:16]} 43. Ke6 {[%emt 0:00:56]} g5 {[%emt 0:00:04]} 44. Nf6+ {[%emt 0:00:22]} Kg3 {[%emt 0:00:07]} 45. Nh5+ {[%emt 0:00:02]} Kg4 {[%emt 0:00:08]} 46. Nf6+ {[%emt 0:00:01]} Kg3 {[%emt 0:00:02]} 47. Nh5+ {[%emt 0:00:01]} Kh2 {[%emt 0:00:02]} 48. Kf5 {[%emt 0:00:07]} Rc4 {[%emt 0:00:08]} 49. Kxg5 {[%emt 0:00:07]} Rxb4 {[%emt 0:00:01]} 50. g4+ {[%emt 0:00:06]} Kh3 {[%emt 0:00:04]} 51. Nf6 {[%emt 0:00:17]} Rb5+ {[%emt 0:00:02]} 52. Kf4 {[%emt 0:00:02]} Rb4+ {[%emt 0:00:01]} 53. Ne4 {[%emt 0:00:02]} c6 {[%emt 0:00:02]} 54. g5 {[%emt 0:00:07]} Bb8+ {[%emt 0:00:02]} 55. Kf5 {[%emt 0:00:16]} Rb5+ {[%emt 0:00:01]} 56. Kf6 {[%emt 0:00:01]} Be5+ {[%emt 0:00:01]} 57. Ke6 {[%emt 0:00:02]} Ba1 {[%emt 0:00:04]} 58. g6 {[%emt 0:00:03]} Re5+ {[%emt 0:00:00]} 59. Kf7 {[%emt 0:00:01]} Rf5+ {[%emt 0:00:01]} 60. Ke6 {[%emt 0:00:02]} Rxa5 {[%emt 0:00:01]} 61. Nf6 {[%emt 0:00:04]} Rg5 {[%emt 0:00:03]} 62. Kf7 {[%emt 0:00:04]} Bxf6 {[%emt 0:00:07]} 63. Kxf6 {[%emt 0:00:01]} Rg4 {[%emt 0:00:02]} 64. g7 {[%emt 0:00:03]} Kg3 {[%emt 0:00:01]} 65. Re3+ {[%emt 0:00:05]} Kf2 {[%emt 0:00:01]} 66. Rh3 {[%emt 0:00:04]} a5 {[%emt 0:00:04]} 67. Rxh4 {[%emt 0:00:01]} Rxh4 {[%emt 0:00:01]} 68. g8=Q {[%emt 0:00:01]} a4 {[%emt 0:00:01]} 69. Ke5 {[%emt 0:00:03]} a3 {[%emt 0:00:04]} 70. Qf8+ {[%emt 0:00:01]} Ke2 {[%emt 0:00:01]} 71. Qxa3 {[%emt 0:00:01]} c5 {[%emt 0:00:01]} 72. Qb2+ {[%emt 0:00:02]} Kd3 {[%emt 0:00:03]} 73. Qb3+ {[%emt 0:00:03]} Ke2 {[%emt 0:00:01]} 74. Qb5+ {[%emt 0:00:02]} Kf3 {[%emt 0:00:01]} 75. Qd3+ {[%emt 0:00:02]} Kf2 {[%emt 0:00:01]} 76. Qf5+ {[%emt 0:00:05]} Kg3 {[%emt 0:00:02]} 77. Qg5+ {[%emt 0:00:01]} Rg4 {[%emt 0:00:04]} 78. Qe3+ {[%emt 0:00:01]} Kg2 {[%emt 0:00:01]} 79. Kf5 {[%emt 0:00:01]} Rd4 {[%emt 0:00:01]} 80. Kg5 {[%emt 0:00:03]} Kf1 {[%emt 0:00:03]} 81. Qc3 {[%emt 0:00:01]} Rd5+ {[%emt 0:00:04]} 82. Kf4 {[%emt 0:00:02]} Rd4+ {[%emt 0:00:03]} 83. Kf3 {[%emt 0:00:02]} 1-0

[Event "CCT Chessable Masters D-III 2024"]
[Site "Online"]
[Date "2024.02.02"]
[Round "2"]
[White "ViIIagra"]
[Black "youngKID"]
[Result "1/2-1/2"]
[ECO "D00"]
[WhiteElo "2613"]
[BlackElo "2569"]
[Annotator "ChessBase"]
[PlyCount "137"]
[EventDate "2024.01.12"]
[EventType "k.o."]
[EventCountry "NET"]
[SourceTitle "playchess.com"]
[Source "ChessBase"]
[SourceQuality "1"]
[TimeControl "600+2"]

1. d4 {[%emt 0:00:03]} Nf6 {[%emt 0:00:09]} 2. Nc3 {[%emt 0:00:06]} d5 {[%emt 0:00:01]} 3. Bf4 {[%emt 0:00:01]} a6 {[%emt 0:00:11]} 4. e3 {[%emt 0:00:03]} c5 {[%emt 0:00:23]} 5. dxc5 {[%emt 0:00:03]} Nc6 {[%emt 0:00:06]} 6. a3 {[%emt 0:00:02]} e5 {[%emt 0:00:20]} 7. Bg5 {[%emt 0:00:03]} Be6 {[%emt 0:00:24]} 8. b4 {[%emt 0:00:34]} Be7 {[%emt 0:00:50]} 9. Nf3 {[%emt 0:00:27]} O-O {[%emt 0:00:12]} 10. Be2 {[%emt 0:01:11]} h6 {[%emt 0:03:21]} 11. Bxf6 {[%emt 0:00:06]} Bxf6 {[%emt 0:00:01]} 12. e4 {[%emt 0:00:01]} dxe4 {[%emt 0:00:35]} 13. Nxe4 {[%emt 0:00:20]} Be7 {[%emt 0:00:02]} 14. Ned2 {[%emt 0:03:10]} f5 {[%emt 0:01:05]} 15. Bc4 {[%emt 0:00:04]} Qc8 {[%emt 0:01:18]} 16. c3 {[%emt 0:00:14]} Bf6 {[%emt 0:00:34]} 17. Qb3 {[%emt 0:00:52]} Re8 {[%emt 0:00:01]} 18. Bxe6+ {[%emt 0:01:13]} Qxe6 {[%emt 0:00:02]} 19. Qxe6+ {[%emt 0:00:39]} Rxe6 {[%emt 0:00:00]} 20. Nb3 {[%emt 0:00:01]} Rd8 {[%emt 0:00:18]} 21. Ke2 {[%emt 0:00:25]} e4 {[%emt 0:00:10]} 22. Nfd4 {[%emt 0:00:02]} Bxd4 {[%emt 0:00:02]} 23. Nxd4 {[%emt 0:00:00]} Nxd4+ {[%emt 0:00:00]} 24. cxd4 {[%emt 0:00:01]} Rxd4 {[%emt 0:00:00]} 25. Rhd1 {[%emt 0:00:00]} Rc4 {[%emt 0:00:14]} 26. Rac1 {[%emt 0:00:04]} Rxc1 {[%emt 0:00:01]} 27. Rxc1 {[%emt 0:00:00]} Kf7 {[%emt 0:00:01]} 28. Ke3 {[%emt 0:00:12]} g5 {[%emt 0:00:18]} 29. g3 {[%emt 0:00:03]} Ke7 {[%emt 0:00:04]} 30. a4 {[%emt 0:00:11]} Kd7 {[%emt 0:00:09]} 31. b5 {[%emt 0:00:18]} axb5 {[%emt 0:00:00]} 32. axb5 {[%emt 0:00:00]} Kc7 {[%emt 0:00:04]} 33. Rd1 {[%emt 0:00:02]} Re5 {[%emt 0:00:01]} 34. Kd4 {[%emt 0:00:01]} Re8 {[%emt 0:00:01]} 35. Kc4 {[%emt 0:00:04]} f4 {[%emt 0:00:05]} 36. b6+ {[%emt 0:00:22]} Kc8 {[%emt 0:00:01]} 37. gxf4 {[%emt 0:00:00]} gxf4 {[%emt 0:00:01]} 38. Re1 {[%emt 0:00:01]} e3 {[%emt 0:00:05]} 39. fxe3 {[%emt 0:00:00]} fxe3 {[%emt 0:00:01]} 40. Kd3 {[%emt 0:00:06]} Re5 {[%emt 0:00:05]} 41. Kd4 {[%emt 0:00:07]} Rh5 {[%emt 0:00:01]} 42. Rxe3 {[%emt 0:00:01]} Rxh2 {[%emt 0:00:01]} 43. Re7 {[%emt 0:00:00]} Rd2+ {[%emt 0:00:03]} 44. Kc3 {[%emt 0:00:03]} Rd7 {[%emt 0:00:05]} 45. Re8+ {[%emt 0:00:02]} Rd8 {[%emt 0:00:01]} 46. Re7 {[%emt 0:00:00]} Rh8 {[%emt 0:00:02]} 47. Kc4 {[%emt 0:00:11]} h5 {[%emt 0:00:02]} 48. c6 {[%emt 0:00:01]} bxc6 {[%emt 0:00:01]} 49. Kc5 {[%emt 0:00:00]} h4 {[%emt 0:00:02]} 50. b7+ {[%emt 0:00:01]} Kb8 {[%emt 0:00:02]} 51. Kb6 {[%emt 0:00:01]} h3 {[%emt 0:00:04]} 52. Re1 {[%emt 0:00:02]} c5 {[%emt 0:00:01]} 53. Ra1 {[%emt 0:00:03]} Rh6+ {[%emt 0:00:01]} 54. Kxc5 {[%emt 0:00:01]} h2 {[%emt 0:00:01]} 55. Rh1 {[%emt 0:00:00]} Kxb7 {[%emt 0:00:01]} 56. Kd4 {[%emt 0:00:00]} Kc6 {[%emt 0:00:00]} 57. Ke3 {[%emt 0:00:01]} Kd5 {[%emt 0:00:01]} 58. Kf3 {[%emt 0:00:01]} Kd4 {[%emt 0:00:01]} 59. Kg2 {[%emt 0:00:00]} Ke3 {[%emt 0:00:01]} 60. Rxh2 {[%emt 0:00:00]} Rg6+ {[%emt 0:00:01]} 61. Kh1 {[%emt 0:00:03]} Kf3 {[%emt 0:00:02]} 62. Rh3+ {[%emt 0:00:01]} Kf2 {[%emt 0:00:02]} 63. Rh2+ {[%emt 0:00:03]} Kf1 {[%emt 0:00:01]} 64. Rh4 {[%emt 0:00:04]} Rg1+ {[%emt 0:00:02]} 65. Kh2 {[%emt 0:00:00]} Rg2+ {[%emt 0:00:00]} 66. Kh3 {[%emt 0:00:01]} Re2 {[%emt 0:00:02]} 67. Rf4+ {[%emt 0:00:01]} Rf2 {[%emt 0:00:01]} 68. Kg3 {[%emt 0:00:02]} Rxf4 {[%emt 0:00:02]} 69. Kxf4 {[%emt 0:00:01]} 1/2-1/2

[Event "CCT Chessable Masters D-III 2024"]
[Site "Online"]
[Date "2024.02.02"]
[Round "2"]
[White "Paravyan, David"]
[Black "BilodeauA"]
[Result "1-0"]
[ECO "C50"]
[WhiteElo "2612"]
[BlackElo "2638"]
[Annotator "ChessBase"]
[PlyCount "55"]
[EventDate "2024.01.12"]
[EventType "k.o."]
[EventCountry "NET"]
[SourceTitle "playchess.com"]
[Source "ChessBase"]
[SourceQuality "1"]
[TimeControl "600+2"]

1. e4 {[%emt 0:00:02]} e5 {[%emt 0:00:03]} 2. Nf3 {[%emt 0:00:01]} Nc6 {[%emt 0:00:01]} 3. Bc4 {[%emt 0:00:01]} Nf6 {[%emt 0:00:06]} 4. d3 {[%emt 0:00:00]} Bc5 {[%emt 0:00:01]} 5. Be3 {[%emt 0:00:09]} Bxe3 {[%emt 0:00:12]} 6. fxe3 {[%emt 0:00:00]} d6 {[%emt 0:00:15]} 7. O-O {[%emt 0:00:03]} Be6 {[%emt 0:00:12]} 8. Bb3 {[%emt 0:00:05]} O-O {[%emt 0:00:07]} 9. c4 {[%emt 0:00:03]} Ne7 {[%emt 0:00:16]} 10. Nc3 {[%emt 0:00:12]} c6 {[%emt 0:00:12]} 11. d4 {[%emt 0:00:25]} Ng6 {[%emt 0:00:02]} 12. Qe1 {[%emt 0:00:18]} a6 {[%emt 0:00:18]} 13. Ng5 {[%emt 0:00:26]} Bd7 {[%emt 0:00:16]} 14. Rd1 {[%emt 0:00:06]} h6 {[%emt 0:00:24]} 15. Nxf7 {[%emt 0:01:25]} Rxf7 {[%emt 0:00:19]} 16. c5 {[%emt 0:00:01]} d5 {[%emt 0:02:55]} 17. exd5 {[%emt 0:00:19]} exd4 {[%emt 0:01:09]} 18. dxc6 {[%emt 0:00:53]} Bxc6 {[%emt 0:00:09]} 19. exd4 {[%emt 0:00:07]} Be8 {[%emt 0:00:51]} 20. Ne4 {[%emt 0:00:48]} Nd5 {[%emt 0:01:22]} 21. Rxf7 {[%emt 0:02:18]} Bxf7 {[%emt 0:00:01]} 22. Nd6 {[%emt 0:00:00]} Qd7 {[%emt 0:00:21]} 23. Nxf7 {[%emt 0:00:12]} Qxf7 {[%emt 0:00:06]} 24. Qe4 {[%emt 0:00:00]} Ngf4 {[%emt 0:00:45]} 25. Rf1 {[%emt 0:00:02]} Re8 {[%emt 0:00:24]} 26. Rxf4 {[%emt 0:00:01]} Rxe4 {[%emt 0:00:03]} 27. Rxf7 {[%emt 0:00:01]} Rxd4 {[%emt 0:00:04]} 28. Rd7 {[%emt 0:00:02]} 1-0

[Event "CCT Chessable Masters D-III 2024"]
[Site "Online"]
[Date "2024.02.02"]
[Round "2"]
[White "Safarli, Eltaj"]
[Black "Mishra, Abhimanyu"]
[Result "1/2-1/2"]
[ECO "B50"]
[WhiteElo "2604"]
[BlackElo "2627"]
[Annotator "ChessBase"]
[PlyCount "59"]
[EventDate "2024.01.12"]
[EventType "k.o."]
[EventCountry "NET"]
[SourceTitle "playchess.com"]
[Source "ChessBase"]
[SourceQuality "1"]
[TimeControl "600+2"]

1. e4 {[%emt 0:00:02]} c5 {[%emt 0:00:07]} 2. Nf3 {[%emt 0:00:05]} d6 {[%emt 0:00:01]} 3. Nc3 {[%emt 0:00:01]} Nf6 {[%emt 0:00:01]} 4. e5 {[%emt 0:00:01]} dxe5 {[%emt 0:00:01]} 5. Nxe5 {[%emt 0:00:00]} a6 {[%emt 0:00:01]} 6. g3 {[%emt 0:00:01]} Qd6 {[%emt 0:00:02]} 7. Nf3 {[%emt 0:00:01]} b5 {[%emt 0:00:05]} 8. Bg2 {[%emt 0:00:02]} Bb7 {[%emt 0:00:02]} 9. O-O {[%emt 0:00:00]} e6 {[%emt 0:00:01]} 10. d3 {[%emt 0:00:01]} Be7 {[%emt 0:00:16]} 11. a4 {[%emt 0:00:01]} b4 {[%emt 0:00:38]} 12. Nb1 {[%emt 0:00:01]} O-O {[%emt 0:00:04]} 13. Nbd2 {[%emt 0:00:01]} Nc6 {[%emt 0:00:22]} 14. Nc4 {[%emt 0:00:04]} Qd8 {[%emt 0:00:00]} 15. Re1 {[%emt 0:00:24]} Nd5 {[%emt 0:00:05]} 16. h4 {[%emt 0:00:08]} Bf6 {[%emt 0:00:32]} 17. Ng5 {[%emt 0:00:17]} h6 {[%emt 0:01:41]} 18. Ne4 {[%emt 0:00:03]} Be7 {[%emt 0:00:01]} 19. a5 {[%emt 0:01:51]} Qc7 {[%emt 0:00:57]} 20. Qg4 {[%emt 0:01:05]} f5 {[%emt 0:01:40]} 21. Qg6 {[%emt 0:00:01]} fxe4 {[%emt 0:00:01]} 22. Bxh6 {[%emt 0:01:07]} Bf6 {[%emt 0:01:05]} 23. Bxe4 {[%emt 0:00:08]} Nce7 {[%emt 0:00:27]} 24. Qh7+ {[%emt 0:00:01]} Kf7 {[%emt 0:00:08]} 25. Bxg7 {[%emt 0:00:03]} Bxg7 {[%emt 0:00:46]} 26. Qh5+ {[%emt 0:00:14]} Kf6 {[%emt 0:00:14]} 27. Qg5+ {[%emt 0:03:50]} Kf7 {[%emt 0:00:02]} 28. Qh5+ {[%emt 0:00:00]} Kf6 {[%emt 0:00:01]} 29. Qg5+ {[%emt 0:00:52]} Kf7 {[%emt 0:00:03]} 30. Qh5+ {[%emt 0:00:11]} 1/2-1/2